Workbook

Sheet Program
G10: UGA Feed Cost Analyzer
G12: Lawton Stewart, Extension Animal Scientist
G13: Curt Lacy, Extension Livestock Economist
G14: Dennis Hancock, Extension Forage Specialist

Sheet Feed Library
B1: Feed Library
C3: Feeds | D3: DM | E3: CP | F3: TDN | G3: Ca | H3: P | I3: $/ton* | K3: Legend
C4: FORAGE/ROUGHAGE | K4: DM = Dry Matter
B5: 1 | C5: Bermudagrass hay, good | D5: 85 | E5: 12 | F5: 58 | G5: 0.38 | H5: 0.22 | I5: 20 | K5: CP = Crude Protein
B6: 2 | C6: Bermudagrass hay, average | D6: 85 | E6: 10 | F6: 53 | G6: 0.36 | H6: 0.18 | I6: 100 | K6: TDN = Total Digestible Nutrients
B7: 3 | C7: Bermudagrass hay, poor | D7: 85 | E7: 6 | F7: 49 | G7: 0.34 | H7: 0.18 | I7: 80 | K7: Ca = Calcium
B8: 4 | C8: Tall fescue hay, good | D8: 85 | E8: 16 | F8: 60 | G8: 0.43 | H8: 0.32 | I8: 120 | K8: P = Phosphorus
B9: 5 | C9: Tall fescue hay, average | D9: 85 | E9: 13 | F9: 55 | G9: 0.42 | H9: 0.31 | I9: 100 | K9: $/ton = dollars per ton of feed stuff as fed
B10: 6 | C10: Tall fescue hay, poor | D10: 85 | E10: 10 | F10: 50 | G10: 0.41 | H10: 0.3 | I10: 80 | K10: * prices for pastures are based on
B11: 7 | C11: Peanut Hay | D11: 88 | E11: 11 | F11: 48 | G11: 1.2 | H11: 0.15 | I11: 80 | K11: average management
B12: 8 | C12: Bermudagrass pasture | D12: 25 | E12: 13 | F12: 64 | G12: 0.4 | H12: 0.27 | I12: 8.75
B13: 9 | C13: Bahiagrass pasture | D13: 25 | E13: 10 | F13: 58 | G13: 0.46 | H13: 0.22 | I13: 8.25
B14: 10 | C14: Summer annual pasture | D14: 25 | E14: 12 | F14: 60 | G14: 0.5 | H14: 0.44 | I14: 8.5
B15: 11 | C15: Small grains pasture - vegetative | D15: 22 | E15: 18 | F15: 70 | G15: 0.45 | H15: 0.35 | I15: 12.5
B16: 12 | C16: Small grains pasture - mature | D16: 25 | E16: 12 | F16: 58 | G16: 0.4 | H16: 0.3 | I16: 12.5
B17: 13 | C17: Ann. Ryegrass pasture - vegetative | D17: 22 | E17: 20 | F17: 72 | G17: 0.65 | H17: 0.41 | I17: 10
B18: 14 | C18: Ann. Ryegrass pasture - mature | D18: 25 | E18: 12 | F18: 58 | G18: 0.6 | H18: 0.35 | I18: 10
B19: 15 | C19: Tall fescue pasture | D19: 25 | E19: 14 | F19: 62 | G19: 0.44 | H19: 0.33 | I19: 8
B20: 16 | C20: Corn Silage | D20: 31.7 | E20: 8 | F20: 70.7 | G20: 0.14 | H20: 0.18 | I20: 50
B21: 17 | C21: Cottonseed Hulls | D21: 90 | E21: 4 | F21: 45 | G21: 0.15 | H21: 0.09 | I21: 180
B22: 18 | C22: Gin Trash | D22: 85 | E22: 11.7 | F22: 46.6 | G22: 0.9 | H22: 0.2 | I22: 35
B23: 19 | C23: Peanut Hulls | D23: 90 | E23: 8 | F23: 25 | G23: 1.2 | H23: 0.1 | I23: 20
B24: 20 | C24: Soybean Stubble | D24: 85 | E24: 5 | F24: 40 | G24: 1.2 | H24: 0.15 | I24: 20
B25: 21 | C25: BLANK | D25: 100 | E25: 1 | F25: 1 | G25: 0 | H25: 0 | I25: 999
B26: 22 | C26: BLANK | D26: 100 | E26: 1 | F26: 1 | G26: 0 | H26: 0 | I26: 999
B27: 23 | C27: BLANK | D27: 100 | E27: 1 | F27: 1 | G27: 0 | H27: 0 | I27: 999
B28: 24 | C28: BLANK | D28: 100 | E28: 1 | F28: 1 | G28: 0 | H28: 0 | I28: 999
B29: 25 | C29: BLANK | D29: 100 | E29: 1 | F29: 1 | G29: 0 | H29: 0 | I29: 999
B30: 26 | C30: BLANK | D30: 100 | E30: 1 | F30: 1 | G30: 0 | H30: 0 | I30: 999
B31: 27 | C31: BLANK | D31: 100 | E31: 1 | F31: 1 | G31: 0 | H31: 0 | I31: 999
B32: 28 | C32: PROTEIN
B33: 29 | C33: Brewer's Grains | D33: 25 | E33: 27 | F33: 75 | G33: 0.3 | H33: 0.6 | I33: 30
B34: 30 | C34: Chicken Litter | D34: 85 | E34: 18 | F34: 50 | G34: 3 | H34: 2 | I34: 35
B35: 31 | C35: Corn Gluten | D35: 90 | E35: 25 | F35: 83 | G35: 0.08 | H35: 0.54 | I35: 125
B36: 32 | C36: Cottonseed Meal | D36: 90 | E36: 46 | F36: 78 | G36: 0.21 | H36: 1 | I36: 230
B37: 33 | C37: Distiller's Grains | D37: 90 | E37: 28 | F37: 95 | G37: 0.05 | H37: 0.88 | I37: 145
B38: 34 | C38: Liquid Feed | D38: 67 | E38: 45 | F38: 80 | G38: 2 | H38: 1 | I38: 285
B39: 35 | C39: Molasses Block | D39: 76 | E39: 30 | F39: 80 | G39: 2 | H39: 1 | I39: 650
B40: 36 | C40: Range Cubes | D40: 85 | E40: 25 | F40: 75 | G40: 1.75 | H40: 0.5 | I40: 330
B41: 37 | C41: Soybean Meal | D41: 90 | E41: 49 | F41: 84 | G41: 0.3 | H41: 0.7 | I41: 320
B42: 38 | C42: Sunflower Meal | D42: 90 | E42: 43.6 | F42: 75 | G42: 0.5 | H42: 1.68 | I42: 210
B43: 39 | C43: Urea | D43: 99 | E43: 291 | F43: 0.01 | G43: 0.0001 | H43: 0.0001 | I43: 150
B44: 40 | C44: Whole Cottonseed | D44: 90 | E44: 25 | F44: 95 | G44: 0.21 | H44: 0.64 | I44: 170
B45: 41 | C45: Whole Soybeans | D45: 90 | E45: 42 | F45: 91 | G45: 0.27 | H45: 0.3 | I45: 10
B46: 42 | C46: Whole Peanuts | D46: 93 | E46: 23 | F46: 110 | G46: 0.15 | H46: 0.03 | I46: 75
B47: 43 | C47: BLANK | D47: 100 | E47: 1 | F47: 1 | G47: 0 | H47: 0 | I47: 999
B48: 44 | C48: BLANK | D48: 100 | E48: 1 | F48: 1 | G48: 0 | H48: 0 | I48: 999
B49: 45 | C49: BLANK | D49: 100 | E49: 1 | F49: 1 | G49: 0 | H49: 0 | I49: 999
B50: 46 | C50: BLANK | D50: 100 | E50: 1 | F50: 1 | G50: 0 | H50: 0 | I50: 999
B51: 47 | C51: BLANK | D51: 100 | E51: 1 | F51: 1 | G51: 0 | H51: 0 | I51: 999
B52: 48 | C52: ENERGY/TDN
B53: 49 | C53: Barley | D53: 90 | E53: 13.2 | F53: 84 | G53: 0.05 | H53: 0.35 | I53: 200
B54: 50 | C54: Citrus Pulp | D54: 90 | E54: 7 | F54: 82 | G54: 1.8 | H54: 0.15 | I54: 120
B55: 51 | C55: Corn | D55: 90 | E55: 8 | F55: 90 | G55: 0.02 | H55: 0.35 | I55: 160
B56: 52 | C56: Grain Sorghum | D56: 90 | E56: 12 | F56: 76 | G56: 0.05 | H56: 0.34 | I56: 0
B57: 53 | C57: Molasses | D57: 78 | E57: 9 | F57: 78 | G57: 1.1 | H57: 0.1 | I57: 25
B58: 54 | C58: Oats | D58: 90 | E58: 13 | F58: 77 | G58: 0.07 | H58: 0.38 | I58: 250
B59: 55 | C59: Soybean Hulls | D59: 90 | E59: 12 | F59: 78 | G59: 0.55 | H59: 0.2 | I59: 130
B60: 56 | C60: Wheat | D60: 90 | E60: 14 | F60: 90 | G60: 0.05 | H60: 0.43 | I60: 175
B61: 57 | C61: Wheat Midds | D61: 90 | E61: 18 | F61: 83 | G61: 0.15 | H61: 1 | I61: 165
B62: 58 | C62: 50:50 CGF:SH | D62: 90 | E62: 18 | F62: 80 | G62: 0.31 | H62: 0.37 | I62: 140
B63: 59 | C63: 50:50 DDG:SH | D63: 90 | E63: 19 | F63: 81 | G63: 0.31 | H63: 0.37 | I63: 150
B64: 60 | C64: 60:20:20 SH:CGF:Corn | D64: 90 | E64: 13.4 | F64: 82.1 | G64: 0.3 | H64: 0.323 | I64: 0
B65: 61 | C65: 65:25:10 SH:CGF:PH | D65: 90 | E65: 15 | F65: 74 | G65: 0.498 | H65: 0.277 | I65: 0
B66: 62 | C66: 95:5 Corn:Urea | D66: 91 | E66: 23.5 | F66: 85.1 | G66: 0.019 | H66: 0.33 | I66: 160
B67: 63 | C67: BLANK | D67: 100 | E67: 1 | F67: 1 | G67: 0 | H67: 0 | I67: 999
B68: 64 | C68: BLANK | D68: 100 | E68: 1 | F68: 1 | G68: 0 | H68: 0 | I68: 999
B69: 65 | C69: BLANK | D69: 100 | E69: 1 | F69: 1 | G69: 0 | H69: 0 | I69: 999
B70: 66 | C70: BLANK | D70: 100 | E70: 1 | F70: 1 | G70: 0 | H70: 0 | I70: 999
B71: 67 | C71: BLANK | D71: 100 | E71: 1 | F71: 1 | G71: 0 | H71: 0 | I71: 999
B72: 68 | C72: BLANK | D72: 100 | E72: 1 | F72: 1 | G72: 0 | H72: 0 | I72: 999

Sheet Analyzer
B2: UGA Feed Cost Analyzer
B4: Date | C4: =TODAY() -> 2010-12-15 | E4: Dr. Lawton Stewart, Animal and Dairy Science
B5: Farm | C5: UGA Farms | E5: Dr. Curt Lacy, Agriculture and Applied Economics
E6: Dr. Dennis Hancock, Crop and Soil Sciences
E7: Local Extension Office: 1-800-ASK-UGA1 | K7: Instructions:
B9: Ingredients | C9: $/ton | D9: % DM | E9: % CP | F9: % TDN | G9: $/CWT DM | H9: $/lb CP | I9: $/lb TDN | K9: Analyzer
B10: Cottonseed Meal | C10: =VLOOKUP(B10,'Feed Library'!$C$5:$I$72,7,FALSE) -> 230 | D10: =VLOOKUP(B10,'Feed Library'!$C$5:$I$72,2,FALSE) -> 90 | E10: =VLOOKUP(B10,'Feed Library'!$C$5:$I$72,3,FALSE) -> 46 | F10: =VLOOKUP(B10,'Feed Library'!$C$5:$I$72,4,FALSE) -> 78 | G10: =C10/20/(D10/100) -> 12.77777778 | H10: =C10/(2000*(D10/100)*(E10/100)) -> 0.2777777778 | I10: =C10/(2000*(D10/100)*(F10/100)) -> 0.1638176638 | K10: 1) | L10: Adjust nutrient content n Feed Library if a nutrient analysis is available for a given feed.
B11: Corn Gluten | C11: =VLOOKUP(B11,'Feed Library'!$C$5:$I$72,7,FALSE) -> 125 | D11: =VLOOKUP(B11,'Feed Library'!$C$5:$I$72,2,FALSE) -> 90 | E11: =VLOOKUP(B11,'Feed Library'!$C$5:$I$72,3,FALSE) -> 25 | F11: =VLOOKUP(B11,'Feed Library'!$C$5:$I$72,4,FALSE) -> 83 | G11: 6.944444444 | H11: =C11/(2000*(D11/100)*(E11/100)) -> 0.2777777778 | I11: =C11/(2000*(D11/100)*(F11/100)) -> 0.08366800535 | K11: 2) | L11: Select feeds to compare from drop down menus under "Ingredients".
B12: Soybean Meal | C12: =VLOOKUP(B12,'Feed Library'!$C$5:$I$72,7,FALSE) -> 320 | D12: =VLOOKUP(B12,'Feed Library'!$C$5:$I$72,2,FALSE) -> 90 | E12: =VLOOKUP(B12,'Feed Library'!$C$5:$I$72,3,FALSE) -> 49 | F12: =VLOOKUP(B12,'Feed Library'!$C$5:$I$72,4,FALSE) -> 84 | G12: 17.77777778 | H12: 0.3628117914 | I12: =C12/(2000*(D12/100)*(F12/100)) -> 0.2116402116 | K12: 3) | L12: In the | N12: shaded cells, the values of each feedstuff will be reported
B13: Whole Cottonseed | C13: =VLOOKUP(B13,'Feed Library'!$C$5:$I$72,7,FALSE) -> 170 | D13: =VLOOKUP(B13,'Feed Library'!$C$5:$I$72,2,FALSE) -> 90 | E13: =VLOOKUP(B13,'Feed Library'!$C$5:$I$72,3,FALSE) -> 25 | F13: =VLOOKUP(B13,'Feed Library'!$C$5:$I$72,4,FALSE) -> 95 | G13: 9.444444444 | H13: 0.3777777778 | I13: 0.09941520468 | L13: on a $/ pound of nutrient (dry matter basis).
B14: Soybean Hulls | C14: =VLOOKUP(B14,'Feed Library'!$C$5:$I$72,7,FALSE) -> 130 | D14: =VLOOKUP(B14,'Feed Library'!$C$5:$I$72,2,FALSE) -> 90 | E14: =VLOOKUP(B14,'Feed Library'!$C$5:$I$72,3,FALSE) -> 12 | F14: =VLOOKUP(B14,'Feed Library'!$C$5:$I$72,4,FALSE) -> 78 | G14: 7.222222222 | H14: 0.6018518519 | I14: 0.09259259259 | K14: 4) | L14: The three cheapest options will be highlighted in order of green, yellow, red.
B15: Molasses Block | C15: =VLOOKUP(B15,'Feed Library'!$C$5:$I$72,7,FALSE) -> 650 | D15: =VLOOKUP(B15,'Feed Library'!$C$5:$I$72,2,FALSE) -> 76 | E15: =VLOOKUP(B15,'Feed Library'!$C$5:$I$72,3,FALSE) -> 30 | F15: =VLOOKUP(B15,'Feed Library'!$C$5:$I$72,4,FALSE) -> 80 | G15: 42.76315789 | H15: 1.425438596 | I15: 0.5345394737
B16: Liquid Feed | C16: =VLOOKUP(B16,'Feed Library'!$C$5:$I$72,7,FALSE) -> 285 | D16: =VLOOKUP(B16,'Feed Library'!$C$5:$I$72,2,FALSE) -> 67 | E16: =VLOOKUP(B16,'Feed Library'!$C$5:$I$72,3,FALSE) -> 45 | F16: =VLOOKUP(B16,'Feed Library'!$C$5:$I$72,4,FALSE) -> 80 | G16: 21.26865672 | H16: 0.4726368159 | I16: 0.265858209
B17: BLANK | C17: =VLOOKUP(B17,'Feed Library'!$C$5:$I$72,7,FALSE) -> 999 | D17: =VLOOKUP(B17,'Feed Library'!$C$5:$I$72,2,FALSE) -> 100 | E17: =VLOOKUP(B17,'Feed Library'!$C$5:$I$72,3,FALSE) -> 1 | F17: =VLOOKUP(B17,'Feed Library'!$C$5:$I$72,4,FALSE) -> 1 | G17: 49.95 | H17: 49.95 | I17: =C17/(2000*(D17/100)*(F17/100)) -> 49.95
B18: BLANK | C18: =VLOOKUP(B18,'Feed Library'!$C$5:$I$72,7,FALSE) -> 999 | D18: =VLOOKUP(B18,'Feed Library'!$C$5:$I$72,2,FALSE) -> 100 | E18: =VLOOKUP(B18,'Feed Library'!$C$5:$I$72,3,FALSE) -> 1 | F18: =VLOOKUP(B18,'Feed Library'!$C$5:$I$72,4,FALSE) -> 1 | G18: 49.95 | H18: 49.95 | I18: 49.95
B19: BLANK | C19: =VLOOKUP(B19,'Feed Library'!$C$5:$I$72,7,FALSE) -> 999 | D19: =VLOOKUP(B19,'Feed Library'!$C$5:$I$72,2,FALSE) -> 100 | E19: =VLOOKUP(B19,'Feed Library'!$C$5:$I$72,3,FALSE) -> 1 | F19: =VLOOKUP(B19,'Feed Library'!$C$5:$I$72,4,FALSE) -> 1 | G19: 49.95 | H19: 49.95 | I19: 49.95
B20: BLANK | C20: =VLOOKUP(B20,'Feed Library'!$C$5:$I$72,7,FALSE) -> 999 | D20: =VLOOKUP(B20,'Feed Library'!$C$5:$I$72,2,FALSE) -> 100 | E20: =VLOOKUP(B20,'Feed Library'!$C$5:$I$72,3,FALSE) -> 1 | F20: =VLOOKUP(B20,'Feed Library'!$C$5:$I$72,4,FALSE) -> 1 | G20: 49.95 | H20: 49.95 | I20: 49.95
B21: BLANK | C21: =VLOOKUP(B21,'Feed Library'!$C$5:$I$72,7,FALSE) -> 999 | D21: =VLOOKUP(B21,'Feed Library'!$C$5:$I$72,2,FALSE) -> 100 | E21: =VLOOKUP(B21,'Feed Library'!$C$5:$I$72,3,FALSE) -> 1 | F21: =VLOOKUP(B21,'Feed Library'!$C$5:$I$72,4,FALSE) -> 1 | G21: 49.95 | H21: 49.95 | I21: 49.95
B22: BLANK | C22: =VLOOKUP(B22,'Feed Library'!$C$5:$I$72,7,FALSE) -> 999 | D22: =VLOOKUP(B22,'Feed Library'!$C$5:$I$72,2,FALSE) -> 100 | E22: =VLOOKUP(B22,'Feed Library'!$C$5:$I$72,3,FALSE) -> 1 | F22: =VLOOKUP(B22,'Feed Library'!$C$5:$I$72,4,FALSE) -> 1 | G22: 49.95 | H22: 49.95 | I22: 49.95
B23: BLANK | C23: =VLOOKUP(B23,'Feed Library'!$C$5:$I$72,7,FALSE) -> 999 | D23: =VLOOKUP(B23,'Feed Library'!$C$5:$I$72,2,FALSE) -> 100 | E23: =VLOOKUP(B23,'Feed Library'!$C$5:$I$72,3,FALSE) -> 1 | F23: =VLOOKUP(B23,'Feed Library'!$C$5:$I$72,4,FALSE) -> 1 | G23: 49.95 | H23: 49.95 | I23: 49.95
B24: BLANK | C24: =VLOOKUP(B24,'Feed Library'!$C$5:$I$72,7,FALSE) -> 999 | D24: =VLOOKUP(B24,'Feed Library'!$C$5:$I$72,2,FALSE) -> 100 | E24: =VLOOKUP(B24,'Feed Library'!$C$5:$I$72,3,FALSE) -> 1 | F24: =VLOOKUP(B24,'Feed Library'!$C$5:$I$72,4,FALSE) -> 1 | G24: 49.95 | H24: 49.95 | I24: 49.95
B28: Feed Comparison | K28: Feed Comparison
B29: Current Feedstuff | D29: Alternative Feedstuff | G29: *Price at which ALTERNATIVE Feed | K29: 1) | L29: Make sure prices are correct in the Feed Library.
B30: Soybean Meal | C30: vs. | D30: Distiller's Grains | G30: must be, or below, to replace | K30: 2) | L30: Select the current feed being utilized from the drop down menu
G31: CURRENT Feed for respective | L31: in the | N31: box.
D32: TDN* | G32: nutrient. | K32: 3) | L32: Select the potential feed to utilize from the drop down menu
D33: =(VLOOKUP(B30,'Feed Library'!C5:I81,7,FALSE))/(2000*(VLOOKUP(B30,'Feed Library'!C5:I81,2,FALSE)/100)*(VLOOKUP(B30,'Feed Library'!C5:I81,4,FALSE)/100))*(VLOOKUP(D30,'Feed Library'!$C$5:$I$88,2,FALSE)/100)*(VLOOKUP(D30,'Feed Library'!$C$5:$I$88,4,FALSE)/100)*2000 -> 361.9047619 | L33: in the | N33: box.
D34: CP* | K34: 4) | L34: The price at which the potential feed needs to be, or lower, in order
D35: =(VLOOKUP(B30,'Feed Library'!C5:I81,7,FALSE))/(2000*(VLOOKUP(B30,'Feed Library'!C5:I81,2,FALSE)/100)*(VLOOKUP(B30,'Feed Library'!C5:I81,3,FALSE)/100))*(VLOOKUP(D30,'Feed Library'!$C$5:$I$88,2,FALSE)/100)*(VLOOKUP(D30,'Feed Library'!$C$5:$I$88,3,FALSE)/100)*2000 -> 182.8571429 | L35: to replace the current feed will appear in the | T35: boxes for a
L36: given nutrient.
